lending/lending_fUSD_20260411
["ID","MTS","AMOUNT","RATE_DAILY","PERIOD"]
[420239612,1775843434392,-861.33450952,0.00010695,2]
[420239613,1775843434406,-861.33450952,0.00010695,2]
[420239614,1775843434421,-861.33450952,0.00010695,2]
[420239615,1775843434437,-861.33450952,0.00010695,2]
[420239616,1775843434449,-861.33450952,0.00010695,2]
[420239617,1775843434459,-861.33450952,0.00010695,2]
[420239618,1775843434478,-861.33450952,0.00010695,2]
[420239619,1775843434490,-846.97893437,0.00010695,2]
[420239620,1775843434500,-846.97893437,0.00010695,2]
[420239621,1775843434511,-846.97893437,0.00010695,2]
[420239622,1775843434528,-846.97893437,0.00010695,2]
[420239623,1775843434541,-846.97893437,0.00010695,2]
[420239624,1775843434551,-846.97893437,0.00010695,2]
[420239625,1775843434567,-846.97893437,0.00010695,2]
[420239626,1775843434579,-846.97893437,0.00010695,2]
[420239627,1775843434603,-846.97893437,0.00010695,2]
[420239628,1775843434612,-846.97893437,0.00010695,2]
[420239629,1775843434627,-846.97893437,0.00010695,2]
[420239630,1775843434645,-846.97893437,0.00010695,2]
[420239631,1775843434659,-846.97893437,0.00010695,2]
[420239632,1775843434671,-846.97893437,0.00010695,2]
[420239633,1775843434702,-846.97893437,0.00010695,2]
[420239634,1775843434715,-846.97893437,0.00010695,2]
[420239635,1775843434765,-846.97893437,0.00010695,2]
[420239636,1775843434778,-846.97893437,0.00010695,2]
[420239637,1775843434839,-846.97893437,0.00010695,2]
[420239638,1775843434862,-846.97893437,0.00010695,2]
[420239639,1775843434898,-846.97893437,0.00010695,2]
[420239640,1775843434930,-846.97893437,0.00010695,2]
[420239641,1775843434944,-846.97893437,0.00010695,2]
[420239642,1775843434958,-846.97893437,0.00010695,2]
[420239643,1775843434972,-846.97893437,0.00010695,2]
[420239644,1775843434988,-846.97893437,0.00010695,2]
[420239645,1775843434998,-862.58117789,0.00010695,2]
[420239646,1775843435032,-862.58117789,0.00010695,2]
[420239647,1775843435047,-862.58117789,0.00010695,2]
[420239648,1775843435075,-862.58117789,0.00010695,2]
[420239649,1775843435096,-862.58117789,0.00010695,2]
[420239650,1775843435151,-862.58117789,0.00010695,2]
[420239651,1775843435163,-862.58117789,0.00010695,2]
[420239652,1775843435189,-862.58117789,0.00010695,2]
[420239653,1775843435198,-862.58117789,0.00010695,2]
[420239654,1775843435212,-862.58117789,0.00010695,2]
[420239655,1775843435226,-862.58117789,0.00010695,2]
[420239656,1775843435239,-862.58117789,0.00010695,2]
[420239657,1775843435250,-862.58117789,0.00010695,2]
[420239658,1775843435264,-862.58117789,0.00010695,2]
[420239659,1775843435275,-862.58117789,0.00010695,2]
[420239660,1775843435285,-862.58117789,0.00010695,2]
[420239661,1775843435299,-862.58117788,0.00010695,2]
[420239662,1775843435313,-862.58117788,0.00010695,2]
[420239663,1775843435327,-862.58117787,0.00010695,2]
[420239664,1775843435337,-5478.5123516,0.00010696,2]
[420239665,1775843435350,-21453.6488224,0.00010696,2]
[420239666,1775843435362,-167139.3377799,0.00010696,2]
[420239667,1775843435374,-3846.8249312,0.00010696,2]
[420239668,1775843435386,-68657.1449218,0.00010697,2]
[420239669,1775843435403,-9683.7818791,0.00010697,2]
[420239670,1775843435417,-164715.70544143,0.000107,2]
[420239671,1775843435440,-150.0,0.000107,2]
[420239672,1775843435450,-4092.85369997,0.000107,30]
[420239673,1775843435467,-13181.46,0.00010722,2]
[420239674,1775843435481,-4092.85369997,0.00010722,30]
[420239675,1775843435490,-1852.42,0.00010729,2]
[420239676,1775843435509,-4092.85369997,0.00010729,30]
[420239677,1775843435533,-438.12485453,0.00010756,2]
[420239678,1775843435545,-500.0,0.00010773,2]
[420239679,1775843435556,-459.16,0.00010785,2]
[420239680,1775843435581,-4092.85369997,0.00010785,30]
[420239681,1775843435592,-488.0,0.00010813,2]
[420239682,1775843435602,-199.53,0.00010815,2]
[420239683,1775843435618,-1086.9553866,0.00010824,2]
[420239684,1775843435640,-340.0,0.00010839,2]
[420239685,1775843435651,-265.08419038,0.0001086,2]
[420239686,1775843435669,-151.0,0.00010879,2]
[420239687,1775843435685,-725.43,0.00010883,2]
[420239688,1775843435695,-427.0,0.000109,2]
[420239689,1775843435714,-615.9988257,0.000109,2]
[420239690,1775843435733,-1332.01951294,0.00010907,2]
[420239691,1775843435743,-484.0,0.00010924,2]
[420239692,1775843435776,-229.0,0.00010946,2]
[420239693,1775843435786,-958.16,0.00010959,2]
[420239694,1775843435810,-150.0,0.00010959,2]
[420239695,1775843435835,-625.9,0.00010968,2]
[420239696,1775843435850,-500.0,0.00011047,2]
[420239697,1775843435909,-609.3132294,0.00011099,2]
[420239698,1775843435931,-860.31271238,0.00011099,2]
[420239699,1775843435946,-860.31271238,0.00011099,2]
[420239700,1775843435958,-984.0,0.00011101,3]
[420239701,1775843435968,-1600.0,0.00011128,2]
[420239702,1775843435982,-609.31322938,0.00011184,2]
[420239703,1775843435993,-172.3,0.00011233,2]
[420239704,1775843436011,-625.9,0.00011242,2]
[420239705,1775843436021,-166.54,0.00011273,2]
[420239706,1775843436033,-500.0,0.00011321,2]
[420239707,1775843436049,-1116.0,0.00011322,2]
[420239708,1775843436064,-615.99882569,0.00011353,2]
[420239709,1775843436075,-199.53,0.00011356,2]
[420239710,1775843436099,-211.05,0.00011434,2]
[420239711,1775843436109,-1969.08,0.00011507,2]
[420239712,1775843436129,-625.9,0.00011516,2]
[420239713,1775843436140,-255.0,0.00011523,2]
[420239714,1775843436151,-300.0,0.00011538,2]
[420239715,1775843436166,-1680.0,0.00011544,2]
[420239716,1775843436177,-600.0,0.00011545,2]
[420239717,1775843436191,-600.0,0.00011545,2]
[420239718,1775843436201,-600.0,0.00011545,2]
[420239719,1775843436212,-5000.0,0.00011545,2]
[420239720,1775843436223,-195.0,0.00011545,2]
[420239721,1775843436234,-195.0,0.00011545,2]
[420239722,1775843436249,-196.69422067,0.00011545,2]
[420239723,1775843436262,-250.0,0.00011545,2]
[420239724,1775843436272,-5000.0,0.00011545,2]
[420239725,1775843436286,-193.0,0.00011545,2]
[420239726,1775843436300,-250.0,0.00011545,2]
[420239727,1775843436316,-600.0,0.00011545,2]
[420239728,1775843436329,-600.0,0.00011545,2]
[420239729,1775843436342,-5000.0,0.00011545,2]
[420239730,1775843436360,-5000.0,0.00011545,2]
[420239731,1775843436391,-195.0,0.00011545,2]
[420239732,1775843436402,-195.0,0.00011545,2]
[420239733,1775843436441,-250.0,0.00011545,2]
[420239734,1775843436457,-500.0,0.00011595,2]
[420239735,1775843436480,-860.31271238,0.00011619,2]
[420239736,1775843436495,-250.0,0.00011659,2]
[420239737,1775843436507,-984.0,0.00011706,3]
[420239738,1775843436548,-609.31322938,0.00011774,2]
[420239739,1775843436559,-3221.7885642,0.00011776,2]
[420239740,1775843436594,-625.9,0.0001179,2]
[420239741,1775843436606,-22479.80745908,0.0001179,2]
[420239742,1775843436647,-2000.0,0.00011832,2]
[420239743,1775843436667,-254.04,0.00011836,2]
[420239744,1775843436694,-166.54,0.0001186,2]
[420239745,1775843436705,-174.45,0.00011861,2]
[420239746,1775843436720,-503.49918518,0.00011869,2]
[420239747,1775843436737,-199.53,0.00011897,2]
[420239748,1775843436763,-1116.0,0.00011918,2]
[420239749,1775843436773,-5478.5123516,0.00011932,2]
[420239750,1775843436789,-174.4009,0.00012,2]
[420239751,1775843436799,-625.92,0.00012064,2]
[420239752,1775843436811,-37293.8272059,0.00012088,2]
[420239753,1775843436823,-858.3426629,0.00012088,2]
[420239754,1775843436853,-15319.4797417,0.00012089,2]
[420239755,1775843436863,-5003.57,0.0001211,2]
[420239756,1775843436873,-298.220858,0.00012126,2]
[420239757,1775843436909,-381.94403,0.00012126,2]
[420239758,1775843436918,-231.34709,0.0001215,2]
[420239759,1775843436962,-376.114914,0.0001215,2]
[420239760,1775843436978,-62316.84898711,0.00012199,2]
[420239761,1775843436990,-984.0,0.00012312,3]
[420239762,1775843437013,-609.31322938,0.00012363,2]
[420239763,1775843437030,-1600.0,0.00012364,2]
[420239764,1775843437049,-1891.0782466,0.00012373,2]
[420239765,1775843437083,-1752.9056743,0.00012373,2]
[420239766,1775843437104,-57935.5189082,0.00012374,2]
[420239767,1775843437122,-8321.377637,0.00012398,2]
[420239768,1775843437133,-191.5221358,0.00012398,2]
[420239769,1775843437174,-3418.2379681,0.000124,2]
[420239770,1775843437184,-162.0,0.00012413,3]
[420239771,1775843437212,-199.53,0.00012438,2]
[420239772,1775843437225,-166.54,0.00012448,2]
[420239773,1775843437235,-4786.9560975,0.00012523,2]
[420239774,1775843437264,-1116.0,0.00012545,2]
[420239775,1775843437295,-317.0,0.00012657,2]
[420239776,1775843437305,-479.57717284,0.00012663,2]
[420239777,1775843437325,-2351.0,0.00012698,2]
[420239778,1775843437341,-173.610922,0.00012733,2]
[420239779,1775843437351,-170.961324,0.00012758,2]
[420239780,1775843437362,-421.956592,0.00012768,2]
[420239781,1775843437372,-391.1261238,0.00012768,2]
[420239782,1775843437381,-12927.1616122,0.0001277,2]
[420239783,1775843437391,-984.0,0.00012917,3]
[420239784,1775843437404,-1068.1142806,0.0001293,2]
[420239785,1775843437414,-273.47034868,0.00012952,2]
[420239786,1775843437424,-3221.7885642,0.00012952,2]
[420239787,1775843437433,-609.31322938,0.00012953,2]
[420239788,1775843437446,-199.53,0.00012978,2]
[420239789,1775843437456,-250.0,0.00013,2]
[420239790,1775843437466,-506.0,0.000131,2]
[420239791,1775843437477,-958.16,0.00013122,2]
[420239792,1775843437494,-2160.7438015,0.00013144,2]
[420239793,1775843437505,-2000.0,0.00013146,2]
[420239794,1775843437523,-5478.5123516,0.00013168,2]
[420239795,1775843437536,-1116.0,0.00013172,2]
[420239796,1775843437546,-202.7712,0.000133,2]
[420239797,1775843437561,-150.0,0.00013314,2]
[420239798,1775843437575,-3240.0,0.00013425,2]
[420239799,1775843437585,-160.0,0.00013496,2]
[420239800,1775843437599,-199.53,0.00013519,2]
[420239801,1775843437625,-984.0,0.00013523,3]
[420239802,1775843437635,-609.31322938,0.00013542,2]
[420239803,1775843437647,-1600.0,0.000136,2]
[420239804,1775843437662,-482.1271104,0.00013689,2]
[420239805,1775843437678,-500.0,0.00013698,2]
[420239806,1775843437690,-170.04,0.00013698,2]
[420239807,1775843437704,-500.0,0.00013698,2]
[420239808,1775843437714,-166.66,0.00013699,2]
[420239810,1775843438302,-200.0,0.00013699,2]
[420239811,1775843438313,-500.0,0.00013699,2]
[420239812,1775843438350,-500.0,0.00013699,2]
[420239813,1775843438362,-1000.0,0.00013699,2]
[420239814,1775843438400,-161.73,0.00013699,2]
[420239815,1775843438411,-7053.43,0.000137,2]
[420239816,1775843438435,-7053.43,0.000137,2]
[420239817,1775843438447,-211.05,0.00013728,2]
[420239818,1775843438466,-1116.0,0.00013831,2]
[420239819,1775843438487,-166.66,0.00013836,2]
[420239820,1775843438497,-1300.6524456,0.000139,30]
[420239821,1775843438508,-1347.0,0.0001393,2]
[420239822,1775843438525,-704.179,0.0001393,2]
[420239823,1775843438537,-1218.0,0.0001393,2]
[420239824,1775843438547,-926.0,0.0001393,2]
[420239825,1775843438563,-2471.0,0.0001393,2]
[420239826,1775843438576,-1321.426,0.0001393,2]
[420239827,1775843438586,-403.74564772,0.0001396,2]
[420239828,1775843438601,-3292.0,0.00013968,2]
[420239829,1775843438634,-166.66,0.00013973,2]
[420239830,1775843438644,-698.42784199,0.00013998,2]
[420239831,1775843438669,-199.53,0.0001406,2]
[420239832,1775843438682,-352.0,0.00014106,4]
[420239833,1775843438696,-166.66,0.0001411,2]
[420239834,1775843438716,-984.0,0.00014128,3]
[420239835,1775843438727,-3221.7885642,0.00014128,2]
[420239836,1775843438746,-609.31322938,0.00014132,2]
[420239837,1775843438769,-800.0,0.00014182,2]
[420239838,1775843438783,-1700.0,0.00014182,2]
[420239839,1775843438806,-151.0,0.00014207,2]
[420239840,1775843438820,-166.66,0.00014247,2]
[420239842,1775843438831,-1000.0,0.00014247,2]
[420239844,1775843438850,-1000.0,0.00014247,2]
[420239846,1775843438869,-162.0,0.0001433,3]
[420239848,1775843438881,-166.66,0.00014384,2]
[420239850,1775843438893,-7324.83485222,0.0001439,2]
[420239852,1775843438909,-225.34798066,0.00014394,2]
[420239854,1775843438921,-5478.5123516,0.00014404,2]
[420239856,1775843438933,-2000.0,0.00014461,2]
[420239858,1775843438943,-352.0,0.0001449,4]
[420239860,1775843438953,-1116.0,0.00014522,2]
[420239862,1775843438963,-352.0,0.00014535,4]
[420239864,1775843438980,-199.53,0.00014601,2]
[420239866,1775843439003,-235.7566,0.000147,2]
[420239868,1775843439014,-609.31322938,0.00014721,2]
[420239869,1775843439040,-984.0,0.00014734,3]
[420239871,1775843439049,-1500.0,0.00014795,2]
[420239873,1775843439065,-1477.33041864,0.00014795,2]
[420239875,1775843439087,-987.0,0.00014804,2]
[420239877,1775843439096,-1600.0,0.00014837,2]
[420239880,1775843439107,-5807.416,0.00014916,2]
[420239881,1775843439126,-251.279,0.00014916,2]
[420239883,1775843439146,-2068.49481846,0.00015,2]
[420239885,1775843439158,-678.7,0.00015,2]
[420239887,1775843439170,-300.0,0.00015,2]
[420239889,1775843439186,-13181.46,0.0001501,2]
[420239891,1775843439196,-506.0,0.00015011,3]
[420239893,1775843439211,-4092.85369997,0.0001502,30]
[420239896,1775843439232,-450.0,0.00015068,2]
[420239898,1775843439242,-211.05,0.00015083,2]
[420239900,1775843439255,-216.94259337,0.000152,2]
[420239902,1775843439277,-1116.0,0.00015249,2]
[420239904,1775843439294,-958.16,0.00015285,2]
[420239906,1775843439307,-609.31322938,0.00015311,2]
[420239908,1775843439337,-984.0,0.00015339,3]
[420239910,1775843439349,-2000.0,0.00015342,2]
[420239912,1775843439364,-1730.0,0.00015365,2]
[420239913,1775843439391,-1299.0,0.00015398,2]
[420239915,1775843439401,-5000.0,0.000154,2]
[420239917,1775843439430,-313.0,0.000154,2]
[420239920,1775843439456,-30532.140548,0.000155,7]
[420239922,1775843439467,-1602.96,0.00015507,2]
[420239924,1775843439476,-800.0,0.00015552,2]
[420239925,1775843439508,-1700.0,0.00015552,2]
[420239928,1775843439518,-337461.47570813,0.000156,2]
[420239929,1775843439544,-150.0,0.00015625,2]
[420239931,1775843439553,-10800.92076924,0.00015625,2]
[420239933,1775843439581,-150.0,0.00015625,2]
[420239935,1775843439591,-66804.51260885,0.00015625,2]
[420239937,1775843439612,-150.0,0.00015625,2]
[420239939,1775843439636,-7917.6482789,0.00015625,2]
[420239941,1775843439646,-151.0,0.00015665,2]
[420239943,1775843439655,-151.0,0.00015665,2]
[420239945,1775843439676,-151.0,0.00015665,2]
[420239947,1775843439692,-19424.59,0.00015665,46]
[420239949,1775843439705,-168.0,0.00015691,2]
[420239951,1775843439731,-2000.0,0.00015776,2]
[420239953,1775843439740,-646.53,0.000158,2]
[420239955,1775843439775,-150.0,0.0001587,2]
[420239957,1775843439789,-2000.0,0.0001589,2]
[420239959,1775843439820,-2349.59738532,0.0001589,2]
[420239961,1775843439830,-1602.96,0.00015895,2]
[420239963,1775843439840,-25000.0,0.000159,3]
[420239965,1775843439864,-736.64069466,0.000159,3]
[420239966,1775843439886,-609.31322938,0.000159,2]
[420239968,1775843439901,-984.0,0.00015945,3]
[420239970,1775843439918,-1969.08,0.00015945,2]
[420239972,1775843439941,-733.548,0.00015977,2]
[420239974,1775843439950,-185.14072775,0.00015984,2]
[420239976,1775843439962,-225.34798066,0.0001599,2]
[420239977,1775843439981,-225.34798066,0.0001599,2]
[420239978,1775843439991,-150.0,0.00015991,2]
[420239979,1775843440002,-151.0,0.00015997,2]
[420239980,1775843440012,-433.88518674,0.00016,2]
[420239981,1775843440028,-146287.91956141,0.00016,2]
[420239982,1775843440071,-5091.9983908,0.00016,2]
[420239983,1775843440086,-69025.76489576,0.00016,2]
[420239984,1775843440138,-52299.15856306,0.00016,2]
[420239987,1775843440691,-401.62118215,0.00016,2]
[420239988,1775843440707,-380.0,0.00016,2]
[420239999,1775843443774,-150.0,0.000107,2]
[420240000,1775843443784,-174.6362,0.000121,2]
[420240001,1775843443793,-615.99882569,0.00012111,2]
[420240002,1775843443811,-860.31271238,0.00012231,2]
[420240003,1775843443822,-203.3187,0.000134,2]
[420240004,1775843443831,-236.7121,0.000147,2]
[420240005,1775843443847,-313.0,0.000154,2]
[420240006,1775843443865,-5350.64683745,0.00016,2]
[420240008,1775843443878,-815.93551035,0.00016,2]
[420240009,1775843443898,-78061.66518734,0.00016,2]
[420240012,1775843443927,-25736.64069466,0.00016,2]
[420240014,1775843443954,-1662.67,0.00016,2]
[420240016,1775843443979,-226285.0607259,0.00016,2]
[420240019,1775843444217,-860.31271238,0.00012842,2]
[420240021,1775843444237,-350.68728762,0.00012869,2]
[420240023,1775843444248,-265.31153807,0.00012869,2]
[420240024,1775843444259,-3718.15091288,0.00016,2]
[420240025,1775843444271,-412.0,0.00016,2]
[420240029,1775843444320,-415.0,0.0001393,2]
[420240031,1775843444336,-149.20093203,0.00016,2]
[420240033,1775843444357,-963.42602351,0.00016,2]
[420240035,1775843444385,-24104.6103854,0.00016,2]
[420240036,1775843444671,-6767.32040939,0.00016,2]
[420240037,1775843446235,-860.31271238,0.00013454,2]
[420240038,1775843446248,-615.99882569,0.00013626,2]
[420240039,1775843446273,-106728.78168302,0.00016,2]
[420240040,1775843446286,-20100.22222643,0.00016,2]
[420240041,1775843446336,-266.180693,0.00016,2]
[420240042,1775843449177,-615.99882569,0.00014384,2]
[420240043,1775843449187,-1454.00117431,0.00016,2]
[420240071,1775843467129,-300.0,0.00010694,2]
[420240072,1775843467845,300.0,0.00010694,2]
[420240073,1775843528405,492.0,0.00010695,2]
[420240074,1775843543058,-563.65324812,0.00010695,2]
[420240075,1775843543105,-500.0,0.00010695,2]
[420240076,1775843543152,-370.30207099,0.00010695,2]
[420240077,1775843543189,-500.0,0.00010695,2]
[420240078,1775843543238,-500.0,0.00010695,2]
[420240079,1775843543279,-500.0,0.00010695,2]
[420240080,1775843543335,-500.0,0.00010695,2]
[420240081,1775843543374,-500.0,0.00010695,2]
[420240082,1775843543405,-500.0,0.00010695,2]
[420240083,1775843543450,-176.74066952,0.00010959,2]
[420240085,1775843588913,-3209.39343959,0.00011545,2]
[420240086,1775843589476,-712.49717693,0.00011545,2]
[420240087,1775843589535,-479.0,0.00011289,2]
[420240088,1775843589573,-2868.72594389,0.00011545,2]
[420240089,1775843589676,479.0,0.0001154,3]
[420240090,1775843605782,1027.8947003,0.00011545,2]
[420240091,1775843605990,2681.77111519,0.00011545,2]
[420240092,1775843606101,3181.32977118,0.00011545,2]
[420240093,1775843625230,3109.01441333,0.00011545,2]
[420240094,1775843625316,1134.88657099,0.00011545,2]
[420240095,1775843646674,431.0,0.00011723,2]
[420240097,1775843691503,500.0,0.00010595,2]
[420240098,1775843711910,162.0,0.00011723,2]
[420240099,1775843711959,409.0,0.00011723,2]
[420240100,1775843712160,409.0,0.00011723,2]
[420240101,1775843766150,369.0,0.00011723,2]
[420240102,1775843766400,369.0,0.00011723,2]
[420240103,1775843767766,194.6134,0.00010595,2]
[420240104,1775843827570,332.0,0.00011723,2]
[420240105,1775843827817,332.0,0.00011723,2]
[420240106,1775843850682,500.0,0.00011663,2]
[420240107,1775843888927,4857.51002901,7.945e-05,2]
[420240108,1775843888974,10000.01,7.945e-05,2]
[420240109,1775843889023,5613.28340899,7.945e-05,2]
[420240110,1775843890152,298.0,0.00011723,2]
[420240111,1775843890393,298.0,0.00011723,2]
[420240112,1775843947423,269.0,0.00011723,2]
[420240113,1775843947656,269.0,0.00011723,2]
[420240114,1775844006035,242.0,0.00011723,2]
[420240115,1775844006518,242.0,0.00011723,2]
[420240116,1775844007178,162.0,0.00011723,2]
[420240117,1775844012787,197.0441,0.00011663,2]
[420240120,1775844062395,261.73927932,0.000101,2]
[420240121,1775844066339,218.0,0.00011723,2]
[420240122,1775844066610,218.0,0.00011723,2]
[420240123,1775844068917,151.0,0.00011723,2]
[420240124,1775844068956,151.0,0.00011723,2]
[420240126,1775844075072,151.0,0.00011723,2]
[420240127,1775844075278,654.67664026,0.00011723,2]
[420240128,1775844076986,436.45109351,0.00011723,2]
[420240129,1775844078772,167.81547792,0.00011723,2]
[420240130,1775844078815,123.15191775,0.00011723,2]
[420240131,1775844080429,193.97826378,0.00011723,2]
[420240132,1775844081515,151.0,0.00011723,2]
[420240133,1775844082594,236.95652757,0.00011723,2]
[420240134,1775844126470,196.0,0.00011723,2]
[420240135,1775844126694,196.0,0.00011723,2]
[420240136,1775844154653,500.0,0.00011663,2]
[420240138,1775844168260,9500.01,0.000107,2]
[420240139,1775844168285,10000.01,0.000107,2]
[420240140,1775844168322,10000.01,0.000107,2]
[420240141,1775844168371,10000.01,0.000107,2]
[420240142,1775844168414,10000.01,0.000107,2]
[420240143,1775844168450,10000.01,0.000107,2]
[420240144,1775844168490,10000.01,0.000107,2]
[420240145,1775844168532,10000.01,0.000107,2]
[420240146,1775844168587,10000.01,0.000107,2]
[420240147,1775844175693,-8423.9232909,0.000107,2]
[420240148,1775844175815,-10000.01,0.000107,2]
[420240149,1775844175993,-10000.01,0.000107,2]
[420240150,1775844176150,-10000.01,0.000107,2]
[420240151,1775844176359,-10000.01,0.000107,2]
[420240152,1775844179504,-10000.01,0.000107,2]
[420240153,1775844179541,-10000.01,0.000107,2]
[420240154,1775844179564,-10000.01,0.000107,2]
[420240155,1775844179595,-10000.01,0.000107,2]
[420240156,1775844196457,-300.0,0.00010699,2]
[420240157,1775844219080,2513.234261,0.00010646,2]
[420240158,1775844241226,300.0,0.00010699,2]
[420240159,1775844246308,1200.0,0.00010699,2]
[420240160,1775844247453,228.0,0.00010699,2]
[420240161,1775844275186,500.0,0.00010699,2]
[420240162,1775844275219,500.0,0.00010699,2]
[420240163,1775844275267,500.0,0.00010699,2]
[420240164,1775844275328,500.0,0.00010699,2]
[420240165,1775844275388,500.0,0.00010699,2]
[420240166,1775844275436,500.0,0.00010699,2]
[420240167,1775844275495,500.0,0.00010699,2]
[420240168,1775844275634,500.0,0.00010699,2]
[420240169,1775844275681,500.0,0.00010699,2]
[420240170,1775844275739,479.496359,0.00010699,2]
[420240171,1775844275799,179.27938,0.00010699,2]
[420240172,1775844275827,8.02426356,0.00010699,2]
[420240173,1775844275863,481.0692867,0.00010699,2]
[420240174,1775844275900,500.0,0.00010699,2]
[420240175,1775844275943,500.0,0.00010699,2]
[420240176,1775844276204,500.0,0.00010699,2]
[420240177,1775844276256,414.9497006,0.00010699,2]
[420240178,1775844276338,500.0,0.00010699,2]
[420240179,1775844276424,500.0,0.00010699,2]
[420240180,1775844276487,500.0,0.00010699,2]
[420240181,1775844276613,500.0,0.00010699,2]
[420240182,1775844278461,500.0,0.00010699,2]
[420240183,1775844296351,500.0,0.00010699,2]
[420240184,1775844296403,500.0,0.00010699,2]
[420240185,1775844296689,181.0439714,0.00010699,2]
[420240186,1775844296728,500.0,0.00010699,2]
[420240187,1775844296782,500.0,0.00010699,2]
[420240188,1775844296844,500.0,0.00010699,2]
[420240189,1775844296883,500.0,0.00010699,2]
[420240190,1775844296918,500.0,0.00010699,2]
[420240191,1775844296962,500.0,0.00010699,2]
[420240192,1775844296999,440.37953583,0.00010699,2]
[420240193,1775844297041,474.54324191,0.00010699,2]
[420240194,1775844297070,25.45675809,0.00010699,2]
[420240195,1775844297121,500.0,0.00010699,2]
[420240196,1775844297158,500.0,0.00010699,2]
[420240197,1775844297241,500.0,0.00010699,2]
[420240198,1775844297310,500.0,0.00010699,2]
[420240199,1775844297375,500.0,0.00010699,2]
[420240200,1775844297471,500.0,0.00010699,2]
[420240201,1775844297564,500.0,0.00010699,2]
[420240202,1775844297652,500.0,0.00010699,2]
[420240203,1775844297747,500.0,0.00010699,2]
[420240204,1775844301156,300.0,0.00010699,2]
[420240205,1775844301385,300.0,0.00010699,2]
[420240206,1775844309352,216.0,0.00010699,3]
[420240207,1775844312274,162.0,0.00010699,3]
[420240208,1775844368850,206.0,0.00010699,3]
[420240209,1775844426945,195.0,0.00010699,3]
[420240210,1775844489180,193.0,0.00010699,3]
[420240212,1775844542676,150.0,0.00010699,2]
[420240215,1775844546323,192.0,0.00010699,3]
[420240218,1775844557545,500.0,0.00010699,2]
[420240219,1775844557802,500.0,0.00010699,2]
[420240220,1775844557867,500.0,0.00010699,2]
[420240221,1775844558044,212.76831794,0.00010699,2]
[420240222,1775844558227,500.0,0.00010699,2]
[420240223,1775844559909,500.0,0.00010699,2]
[420240224,1775844559972,500.0,0.00010699,2]
[420240225,1775844560063,347.78492397,0.00010699,2]
[420240226,1775844560103,152.21507603,0.00010699,2]
[420240227,1775844583896,157.82128184,0.00010699,2]
[420240228,1775844584019,500.0,0.00010699,2]
[420240229,1775844590242,331.22992075,0.00010699,2]
[420240230,1775844601148,300.0,0.00010699,2]
[420240231,1775844601212,1200.0,0.00010699,2]
[420240232,1775844601310,300.0,0.00010699,2]
[420240233,1775844611014,162.0,0.00010699,3]
[420240234,1775844611056,182.0,0.00010699,3]
[420240240,1775844632335,-21967.62055404,0.000107,2]
[420240241,1775844632352,-1804.06328209,0.000107,2]
[420240242,1775844632369,-1405.13503512,0.000107,2]
[420240243,1775844632715,-1060.14397087,0.000107,2]
[420240244,1775844632742,-900.10494811,0.000107,2]
[420240245,1775844632754,-3489.7429621,0.000107,2]
[420240246,1775844632776,-16877.55348723,0.000107,2]
[420240250,1775844632839,-173796.41532344,0.000107,2]
[420240252,1775844632849,-305.0,0.000107,2]
[420240254,1775844632873,-5000.0,0.00010711,2]